Cogmind - Beta 12 @@@ ROGUE MODE // 2023.03.12 @ 17:22:10 Player: Excellent Result: Destroyed by G-34 Mercenary with Small Laser Performance ------------- Evolutions (1) 500 Regions Visited (3) 600 Robots Destroyed (24) 120 Value Destroyed (551) 551 Prototype IDs (4) 80 Alien Tech Used (0) 0 Bonus (0) 0 TOTAL SCORE: 1851 Bonus ------- None Cogmind --------- Core Integrity 0/400 Matter 208/300 Energy 100/100 System Corruption 0% Temperature Cool (21) Movement Core (350) Ox6 Location -9/Materials Parts ------- > --- POWER (1) -------- (None) > --- PROPULSION (3) --- (None) > --- UTILITY (3) ------ Large Storage Unit > --- WEAPON (2) ------- (None) > --- INVENTORY (15) --- Aluminum Leg Improved Heat Sink Small Storage Unit Signal Interpreter Autogun Autogun Autogun Improved Light Cannon Improved Light Cannon Grenade Launcher Peak State ------------ > --- POWER ------------ Light Ion Engine > --- PROPULSION ------- Light Treads Light Treads Light Treads > --- UTILITY ---------- Large Storage Unit Targeting Computer Medium Armor Plating > --- WEAPON ----------- Particle Gun Autogun > --- INVENTORY -------- Aluminum Leg Improved Heat Sink Small Storage Unit Signal Interpreter Autogun Autogun Autogun Improved Light Cannon Improved Light Cannon Grenade Launcher [Rating: 13] Favorites ----------- Power Ion Engine Engine Ion Engine Propulsion Light Treads Treads Light Treads Utility Targeting Computer Device Sensor Array Storage Large Storage Unit Processor Targeting Computer Protection Medium Armor Plating Weapon Particle Gun Energy Gun Particle Gun Ballistic Gun Autogun Launcher Grenade Launcher Build | -11 -10 -10 -9 ------- Run | Jun Mat Min Mat Slots Evolved 2 | . . . 2 Power . | . . . . Propulsion 1 | . . . 1 Utility 1 | . . . 1 Weapon . | . . . . Parts Attached 21 | 6 9 . 6 Power 2 | 1 . . 1 Engine 2 | 1 . . 1 Core . | . . . . Reactor . | . . . . Propulsion 3 | 2 . . 1 Treads 3 | 2 . . 1 Leg . | . . . . Wheel . | . . . . Hover . | . . . . Flight . | . . . . Utility 6 | 1 3 . 2 Device 1 | . . . 1 Storage 3 | 1 2 . . Processor 1 | . 1 . . Hackware . | . . . . Protection 1 | . . . 1 Artifact . | . . . . Weapon 10 | 2 6 . 2 Energy Gun 5 | 2 3 . . Energy Cannon . | . . . . Ballistic Gun 1 | . . . 1 Ballistic Cannon . | . . . . Launcher 4 | . 3 . 1 Special Weapon . | . . . . Impact Weapon . | . . . . Slashing Weapon . | . . . . Piercing Weapon . | . . . . Special Melee Weapon . | . . . . Unidentified Prototypes . | . . . . Parts Lost 11 | . 2 . 9 Power 2 | . 1 . 1 Propulsion 3 | . . . 3 Utility 3 | . . . 3 Weapon 3 | . 1 . 2 Highest Loss Streak 8 | . 2 . 8 To Critical Strikes . | . . . . Average Slot Usage (%) 85 | . 87 85 84 Engine 2 | . 4 . 1 Treads 29 | . 28 28 31 Device 1 | . . . 3 Storage 12 | . 14 14 11 Processor 11 | . 12 14 10 Protection 2 | . . . 5 Energy Gun 14 | . 17 14 10 Ballistic Gun 2 | . . . 6 Launcher 7 | . 9 14 3 Naked Turns . | . . . . Heaviest Build 36 | 13 26 26 36 Greatest Support 60 | 40 40 40 60 Greatest Overweight (x) . | . . . . Average Overweight (x) . | . . . . Largest Inventory Capacity 15 | 8 15 15 15 Average Capacity 12 | 6 11 15 15 Most Carried 11 | 5 11 11 11 Average Carried 6 | . 4 11 8 Final Capacity 15 | 8 15 15 15 Final Carried 11 | . 11 11 10 Class Distribution -------------------- 100% | Mutant Dominant Class ---------------- Mutant | -10/Materials Mutant | -10/Mines Mutant | -9/Materials Resources | -11 -10 -10 -9 ----------- Run | Jun Mat Min Mat Matter Collected 585 | 188 282 20 95 Remotely . | . . . . Salvage Created 479 | . 292 69 118 Parts 50 | . 33 2 15 Haulers Intercepted 1 | . 1 . . Recyclers Shooed 1 | . 1 . . Parts Field Recycled . | . . . . Retrieved Matter . | . . . . Parts Self-Destructed . | . . . . Prevented . | . . . . Kills | -11 -10 -10 -9 ------- Run | Jun Mat Min Mat Combat Hostiles Destroyed 14 | . 8 2 4 Guns 6 | . 3 . 3 AOE 8 | . 5 2 1 Classes Destroyed 7 | . 6 . 1 Builder 4 | . 2 . 2 Hauler 1 | . 1 . . Recycler 1 | . 1 . . Watcher 4 | . 3 . 1 Swarmer 7 | . 6 . 1 Grunt 5 | . 2 2 1 Sentry 2 | . . . 2 Best Kill Streak 5 | . 5 2 4 Combat Bots Only 3 | . 3 2 2 Max Kills in Single Turn 3 | . 3 2 1 Gunslinging . | . . . . Exploded 2 | . 2 2 1 Melee . | . . . . Uniques/NPCs Destroyed . | . . . . Combat | -11 -10 -10 -9 -------- Run | Jun Mat Min Mat Damage Taken 1680 | . 372 10 1298 Core 481 | . 71 . 410 Absorbed by Shields . | . . . . Regen/Repaired (Parts) 41 | . . . 41 Core Remaining (%) 85 | 100 . 71 . Volleys Fired 51 | . 23 2 26 Largest 2 | . 2 2 2 Hottest 105 | . 105 95 95 Shots Fired 96 | . 41 4 51 Gun 69 | . 28 2 39 Cannon . | . . . . Launcher 27 | . 13 2 12 Special . | . . . . Kinetic 13 | . . . 13 Thermal 51 | . 23 2 26 Explosive 27 | . 13 2 12 Electromagnetic 5 | . 5 . . Robot Hit Streak 14 | . 14 1 13 Robot Miss Streak 3 | . 1 1 3 Penetration Max . | . . . . Secondary Targets . | . . . . Shots Hit Robots 56 | . 22 2 32 Core Hits 38 | . 19 4 15 Critical Kills . | . . . . Critical Parts Destroyed . | . . . . Critical Strikes . | . . . . Melee Attacks . | . . . . Impact . | . . . . Slashing . | . . . . Piercing . | . . . . Sneak Attacks . | . . . . Combat Hostiles . | . . . . Follow-up Attacks . | . . . . Damage Inflicted 1652 | . 842 128 682 Guns 543 | . 214 . 329 Cannons . | . . . . Explosions 1109 | . 628 128 353 Melee . | . . . . Ramming . | . . . . Kinetic 117 | . . . 117 Thermal 375 | . 163 . 212 Explosive 1077 | . 596 128 353 Electromagnetic 83 | . 83 . . Impact . | . . . . Slashing . | . . . . Piercing . | . . . . Highest Corruption . | . . . . Average Corruption . | . . . . Corruption Purged . | . . . . Corruption Blocked . | . . . . Overload Shots . | . . . . Overflow Damage 91 | . 89 . 2 Projectiles . | . . . . Explosions 91 | . 89 . 2 Melee . | . . . . Knockbacks . | . . . . Impact . | . . . . Kinetic . | . . . . Secondary . | . . . . Self-Inflicted Damage 291 | . 219 . 72 Shots 10 | . 8 . 2 Rammed . | . . . . Targets Rammed . | . . . . Kicked . | . . . . Crushed . | . . . . Highest Temperature 173 | . 127 42 173 Average Temperature 45 | . 48 24 43 Received Heat Transfer 576 | . 78 6 492 Siege Activations . | . . . . Robots Corrupted . | . . . . Combat Hostiles . | . . . . Parts Fried . | . . . . Impact Corruptions . | . . . . Robots Melted . | . . . . Combat Hostiles . | . . . . Parts Melted . | . . . . Heat Transferred 902 | . 384 . 518 Parts Sabotaged . | . . . . Parts Stolen . | . . . . Parts Stripped . | . . . . Power Chain Reactions 1 | . 1 . . Missiles Intercepted . | . . . . Alert | -11 -10 -10 -9 ------- Run | Jun Mat Min Mat Peak Influence 354 | . 284 118 354 Initial 58 | . . 58 45 Average 115 | . 75 109 180 Maximum Alert Level 1 | . 1 . 1 Low Security (%) 79 | 100 96 100 52 Level 1 20 | . 3 . 47 Level 2 . | . . . . Level 3 . | . . . . Level 4 . | . . . . Level 5 . | . . . . High Security . | . . . . Max Security . | . . . . Squads Dispatched 1 | . . . 1 Investigation . | . . . . Extermination . | . . . . Reinforcement 1 | . . . 1 Assault . | . . . . Garrison . | . . . . Intercept . | . . . . Searches Triggered . | . . . . Construction Impeded . | . . . . Haulers Reinforced . | . . . . Active Scanning Responses . | . . . . Cargo Convoy Interrupts . | . . . . Stealth | -11 -10 -10 -9 --------- Run | Jun Mat Min Mat Distress Signals . | . . . . Communications Jammed . | . . . . Distress Signals . | . . . . Times Spotted 33 | . 12 2 19 Peak Tracking Total 9 | . 4 2 9 Tactical Retreats 2 | . . . 2 Traps | -11 -10 -10 -9 ------- Run | Jun Mat Min Mat Traps Triggered . | . . . . Indirectly . | . . . . Trap Hack Attempts . | . . . . Triggered . | . . . . Disarmed 4 | . . . 4 Reprogrammed . | . . . . Reused . | . . . . Traps Extracted . | . . . . Installed . | . . . . Triggered . | . . . . Machines | -11 -10 -10 -9 ---------- Run | Jun Mat Min Mat Machines Disabled 9 | . 7 . 2 Max in Single Turn 2 | . 2 . 2 Machines Repaired . | . . . . Machines Sabotaged . | . . . . Overloaded Fab Kills . | . . . . Hacking | -11 -10 -10 -9 --------- Run | Jun Mat Min Mat Machines Accessed 8 | . 5 . 3 Terminals 7 | . 5 . 2 Fabricators . | . . . . Repair Stations 1 | . . . 1 Recycling Units . | . . . . Scanalyzers . | . . . . Garrison Access . | . . . . Total Hacks 40 | . 24 . 16 Successful 22 | . 14 . 8 Failed 18 | . 10 . 8 Catastrophic 1 | . 1 . . Database Lockouts . | . . . . Manual . | . . . . Terminals 36 | . 24 . 12 Fabricators . | . . . . Repair Stations 4 | . . . 4 Recycling Units . | . . . . Scanalyzers . | . . . . Garrison Access . | . . . . Terminal Hacks 20 | . 14 . 6 Prototype ID Bank 3 | . 2 . 1 Branch Access Points 1 | . 1 . . Terminal Index 1 | . 1 . . Alert Level 3 | . 2 . 1 Unreport Threat 3 | . 3 . . Locate Traps 2 | . 1 . 1 Disarm Traps 1 | . . . 1 Dispatch Records 1 | . 1 . . Maintenance Status 1 | . 1 . . Security Status 1 | . 1 . . Investigation Status 1 | . . . 1 Reinforcement Status 2 | . 1 . 1 Fabricator Hacks . | . . . . Repair Station Hacks 2 | . . . 2 Scan Component 1 | . . . 1 Repair 1 | . . . 1 Recycling Unit Hacks . | . . . . Scanalyzer . | . . . . Garrison Access Hacks . | . . . . Unauthorized Hacks . | . . . . Terminals . | . . . . Fabricators . | . . . . Repair Stations . | . . . . Recycling Units . | . . . . Scanalyzers . | . . . . Garrison Access . | . . . . Data Cores Recovered . | . . . . Used . | . . . . Hacking Detections 7 | . 5 . 2 Full Trace Events . | . . . . Feedback Events . | . . . . Feedback Blocked . | . . . . Robot Schematics Acquired . | . . . . Robots Built . | . . . . Authchips . | . . . . Time . | . . . . Total Robot Build Rating . | . . . . Part Schematics Acquired . | . . . . Parts Built . | . . . . Authchips . | . . . . Time . | . . . . Total Part Build Rating . | . . . . Parts Repaired 1 | . . . 1 Time 26 | . . . 26 Parts Recycled . | . . . . Recycled Matter . | . . . . Retrieved Matter . | . . . . Retrieved Components . | . . . . Parts Scanalyzed . | . . . . Part Schematics Acquired . | . . . . Parts Damaged . | . . . . Bothacking | -11 -10 -10 -9 ------------ Run | Jun Mat Min Mat Used RIF Installer . | . . . . Robots Hacked . | . . . . Non-combat . | . . . . Combat . | . . . . Robot Hacks Applied . | . . . . Relay Couplers Released . | . . . . Fabnet Peak Effective % . | . . . . Robots Rewired . | . . . . Allies Hacked . | . . . . Hacks Repelled . | . . . . Allies | -11 -10 -10 -9 -------- Run | Jun Mat Min Mat Total Allies . | . . . . Largest Group . | . . . . Highest-Rated Group . | . . . . Highest-Rated Ally . | . . . . Total Orders . | . . . . Ally Attacks . | . . . . Total Damage . | . . . . Kills . | . . . . Allies Corrupted . | . . . . Allies Melted . | . . . . Intel | -11 -10 -10 -9 ------- Run | Jun Mat Min Mat Robot Analysis Total . | . . . . Derelict Logs Recovered . | . . . . Drone Launches . | . . . . Drone Recoveries . | . . . . Exploration | -11 -10 -10 -9 ------------- Run | Jun Mat Min Mat Turns Passed 1295 | 67 603 128 497 Spaces Moved 649 | 42 320 77 210 Core 10 | 10 . . . Treads 639 | 32 320 77 210 Legs . | . . . . Wheels . | . . . . Hover . | . . . . Flight . | . . . . Fastest Speed 50 | 50 160 160 160 Average Speed 158 | 133 160 160 160 Slowest Speed 160 | 160 160 160 160 Overloaded Moves . | . . . . Propulsion Burnouts . | . . . . Robots Hopped . | . . . . Cave-ins Triggered . | . . . . Exploration Rate (%) 26 | 4 55 20 27 Regions Visited 3 Branch Regions 1 Pre-discovered Areas . | . . . . Known Exits Taken 1 | . 1 . . Unknown Exits Taken 2 | 1 . 1 . Scrap Searched . | . . . . Spaces Dug . | . . . . Terrain Destroyed 183 | . 109 13 61 Melee . | . . . . Projectile . | . . . . AOE 183 | . 109 13 61 Terrain Rammed . | . . . . Walls Destroyed . | . . . . Machines Disabled . | . . . . Actions | -11 -10 -10 -9 --------- Run | Jun Mat Min Mat Total 824 | 53 369 78 324 Wait 73 | . . . 73 Move 646 | 41 319 76 210 Hop . | . . . . Pick Up 27 | 6 15 . 6 Fast Attach . | . . . . Attach 16 | 6 4 . 6 Detach 2 | . 1 . 1 Swap 5 | . 5 . . Drop 4 | . 2 . 2 Fire 51 | . 23 2 26 Melee . | . . . . Ram . | . . . . Kick . | . . . . Crush . | . . . . Escape Stasis . | . . . . Rewire . | . . . . Trap . | . . . . Miscellaneous . | . . . . Route ------- -11/Junkyard -10/Materials (discovered 3 exits: *Mat / *Min x2) -10/Mines -9/Materials History --------- Turn | Location | Event 41 | -11/Junkyard | Discovered new exit (range 15) 68 | -11/Junkyard | Entered Materials 301 | -10/Materials | Build established: Mutant 364 | -10/Materials | Identified exit to Mines 570 | -10/Materials | Discovered new exit (range 5) 671 | -10/Materials | Entered Mines 791 | -10/Mines | Discovered new exit (range 4) 799 | -10/Mines | Entered Materials 799 | -9/Materials | Evolved 2 slots: Propulsion x1, Utility x1 851 | -9/Materials | Repaired Grenade Launcher 1289 | -9/Materials | Core integrity fell below 50% 1294 | -9/Materials | Core integrity fell below 20% 1296 | -9/Materials | Destroyed by G-34 Mercenary with Small Laser Last Messages --------------- 01242_ Connecting with Terminal... >>Alert(Check) Current Alert Level: Low Security >>Traps(Disarm) Disarmed 4 Shock Traps. >>Traps(Locate) No traps found in local area. 01243_ K-01 Serf destroyed. 01244_ K-01 Serf collects debris. 01246_ Lgt. Treads destroyed. 01247_ K-01 Serf collects debris. 01263_ Med. Armor Plating destroyed. 01277_ Critical hit (Burn: +37). 01277_ Particle Gun destroyed. 01280_ Critical hit (Burn: +37). 01280_ Lgt. Treads destroyed. 01284_ Autogun destroyed. 01285_ Lgt. Treads destroyed. 01287_ Lgt. Ion Engine destroyed. 01288_ Targeting Computer destroyed. Map ----- +----------------------------------------------------+ | | | | | ??????????????????????????????? | | ??????????????????????????????? | | ??????????????????????????????? | | ????????##????????????????????? | | ????????# ########????????????? | | ????????# !!!##???????????? | | ????????# !! ""???????????? | | ????????# !! ""#??????????? | | ????????# T"#??????????? | | ????????# ""#??????????? | | ????????# ""???????????? | | ?????#### ?????????????? | | ?????# # ???????????????? | | ?????# # ?????????????????? | | ?????# ##+##########?????????? | | ?????# T +?????????? | | ?????# ###?????????? | | ######/#### #???????????? | | # gY # #????##+##??? | | # + ##### #??? | | # gYgY# ! #??? | | # # =% #??? | | # # ##/####### #??? | | # @ # # #??# ##??? | | # # # #??# #???? | | # # # #??# #???? | | ######/#### # #### #???? | | ?????#g#??# # / #???? | | ?????# #??# # ####+##???? | | ?????# #### # #?? ????? | | ?????# g # #?? ????? | | ?????# [+ #? ???? | | ?????#+##### # #? ???? | | ???????????# # # ??? | | ???????????# # [[# ??? | | ???????????# # [ [[# ?? | | ???????????# ################?? | | ???????????# #????????????????? | | ???????????# #????????????????? | | ???????????# #????????????????? | | ???????????# #????????????????? | | ##########?# #????????????????? | | # [ # ### #????????????????? | | # + [ #????????????????? | | # # ###!#????????????????? | | # ! ## ##?# #????????????????? | | # ## #??# #????????????????? | | ?? ## ####+###??????????????? | +----------------------------------------------------+ Best States ------------- Heat Dissipation 28 Energy Generation 10 Energy Capacity 250 Matter Stores 300 Matter Capacity 300 Sight Range 16 Robot Scan Range 14 Terrain Scan Density 10 Armor Coverage 225 Evasion (%) 50 Targeting Accuracy 5 Recoil Reduction 3 Item Schematics ----------------- None Robot Schematics ------------------ None Fabricated ------------ Nothing Alien Tech Used ----------------- None Achievements -------------- None Challenges ------------ None Game ------ Seed CompactIntegratedBoregun Manual? 0 Play Time 00:18:25 Cumulative 8.6 hours Start 2023.03.12 @ 17:07:13 End 2023.03.12 @ 17:22:10 Sessions 1 Manual Loads 0 Difficulty Rogue Special Mode None Game No. 10 Rogue 10 Adventurer 0 Explorer 0 Win Type - Total 0 Types 0/0/0/0/0/0/0/0/0 Lore% 18 Gallery% 13 Achievement% 15 Wizard Run 0 Options --------- ASCII 1 Keyboard 0 Movement Mouse Keybinds 0 Fullscreen 1 Font 24/Smallcaps Map View 76x50 Tactical HUD 1 Map Filters NONE Filters NONE Steam 1 RUN: 8799cf4a-7907-40ef-92b0-1bfc065168cd